bitfinex-derivatives/quotes_SOLF0:USTF0_20250830
["timestamp","ask_amount","ask_price","bid_price","bid_amount"]
[1756557462029,0.03692709,199.92,199.7,11.65337986]
[1756557462333,0.03692709,199.92,199.82,7.6]
[1756557462628,2.46996916,199.9,199.82,7.6]
[1756557462834,0.03737047,199.89,199.82,7.6]
[1756557463033,0.03737047,199.89,199.83,2.46996916]
[1756557463232,2.46996916,200.1,199.88,7.6]
[1756557463536,3.96153388,200.09,199.97,7.6]
[1756557463727,3.96153388,200.1,199.97,7.6]
[1756557463928,0.04,200.16,200.02,7.6]
[1756557464129,0.04,200.17,200.02,7.6]
[1756557464329,3.96153388,200.12,200.03,2.0]
[1756557464536,3.96153388,200.06,199.96,7.6]
[1756557464831,3.96153388,200.06,199.95,2.0]
[1756557465037,0.04,200.08,199.94,7.6]
[1756557465333,5.43060973,200.26,199.9,335.78]
[1756557465334,9.39214361,200.28,199.9,335.78]
[1756557465537,4.00153388,200.13,200.03,1.31957347]
[1756557465730,4.00153388,200.13,199.99,7.6]
[1756557465929,0.04,200.13,200.01,7.6]
[1756557466128,0.04,200.13,199.9,335.78]
[1756557466129,3.96153388,200.11,200.04,1.31957347]
[1756557466633,3.96153388,200.12,200.04,1.31957347]
[1756557466829,0.04,200.13,200.04,2.0]
[1756557467029,0.04,200.13,200.06,1.31957347]
[1756557468033,0.04,200.13,200.08,1.31957347]
[1756557468430,3.96153388,200.1,199.8,3.96153388]
[1756557468633,3.96153388,200.07,199.95,7.6]
[1756557468839,3.66374663,200.06,199.98,1.31957347]
[1756557469136,3.96153388,200.03,199.96,1.31957347]
[1756557469438,4.98,200.08,199.83,7.6]
[1756557469439,3.96153388,200.0,199.83,7.6]
[1756557469638,3.96153388,199.97,199.91,1.31957347]
[1756557469840,0.04,200.02,199.92,1.31957347]
[1756557469841,3.96153388,199.98,199.92,1.31957347]
[1756557470042,0.04,200.02,199.92,1.31957347]
[1756557470230,3.61998602,200.01,199.93,1.31957347]
[1756557470433,3.96153388,200.0,199.93,1.31957347]
[1756557470639,3.96153388,199.94,199.74,7.6]
[1756557470838,3.96153388,199.94,199.88,1.31957347]
[1756557471034,4.00153388,199.99,199.86,7.6]
[1756557471231,0.04,199.99,199.86,7.6]
[1756557471531,3.96153388,199.87,199.66,7.6]
[1756557471741,0.04,199.67,199.53,7.6]
[1756557472036,3.96153388,199.62,199.53,7.6]
[1756557472237,3.96153388,199.59,199.53,2.0]
[1756557472443,3.96153388,199.59,199.47,7.6]
[1756557472632,3.96153388,199.58,199.43,442.24]
[1756557472838,3.96153388,199.59,199.57,1.31957347]
[1756557473035,3.96153388,199.6,199.5,7.6]
[1756557473238,0.04,199.6,199.46,7.6]
[1756557473541,3.96153388,199.68,199.59,9.6]
[1756557473542,3.96153388,199.62,199.59,9.6]
[1756557473734,335.94,199.71,199.65,1.31957347]
[1756557473934,110.3,199.76,199.59,7.6]
[1756557474140,4.00153388,199.71,199.68,2.0]
[1756557474336,3.96153388,199.69,199.59,7.6]
[1756557474536,3.96153388,199.73,199.66,0.03658647]
[1756557474836,3.96153388,199.7,199.59,7.6]
[1756557475139,3.96153388,199.64,199.54,7.6]
[1756557475333,0.04,199.63,199.54,7.6]
[1756557475741,6.46427454,199.6,199.48,7.6]
[1756557475943,6.46427454,199.6,199.53,2.0]
[1756557476143,6.46427454,199.6,199.48,7.6]
[1756557476634,6.46427454,199.6,199.52,1.31957347]
[1756557476839,6.46427454,199.6,199.5,1.31957347]
[1756557477045,6.46427454,199.6,199.48,7.6]
[1756557477742,6.46427454,199.6,199.56,1.31957347]
[1756557477946,6.50427454,199.63,199.48,7.6]
[1756557478141,116.46,199.67,199.58,2.0]
[1756557478142,0.04,199.66,199.58,2.0]
[1756557478345,116.46,199.67,199.46,7.6]
[1756557478346,0.04,199.61,199.46,7.6]
[1756557478545,6.46427454,199.6,199.46,7.6]
[1756557478739,6.46427454,199.6,199.52,2.0]
[1756557478945,0.04,199.61,199.46,7.6]
[1756557479249,6.46427454,199.58,199.51,1.31957347]
[1756557479641,6.46427454,199.58,199.46,7.6]
[1756557479839,6.46427454,199.54,199.38,7.6]
[1756557480044,6.46427454,199.54,199.47,1.31957347]
[1756557480346,6.46427454,199.54,199.38,7.6]
[1756557480550,6.46427454,199.5,199.41,2.0]
[1756557480746,6.46427454,199.5,199.38,7.6]
[1756557480947,6.46427454,199.5,199.42,1.31957347]
[1756557481447,336.44,199.55,199.45,2.0]
[1756557481642,6.50427454,199.53,199.38,7.6]
[1756557481845,6.50427454,199.53,199.3,6.66374818]
[1756557481846,6.46427454,199.53,199.3,0.19947364]
[1756557482150,336.44,199.55,199.31,2.0]
[1756557482151,6.46427454,199.41,199.31,2.0]
[1756557482348,6.46427454,199.41,199.3,0.19947364]
[1756557482542,0.04,199.44,199.3,7.79947364]
[1756557482742,6.46427454,199.48,199.31,7.6]
[1756557482953,6.46427454,199.44,199.31,7.6]
[1756557483346,6.46427454,199.44,199.35,2.0]
[1756557483548,0.04,199.47,199.31,7.6]
[1756557483755,0.04,199.63,199.46,3.31957347]
[1756557483954,6.46427454,199.54,199.46,2.0]
[1756557484152,6.50427454,199.58,199.36,7.6]
[1756557484449,6.50427454,199.58,199.45,7.6]
[1756557484648,0.04,199.53,199.39,7.6]
[1756557484852,0.04,199.63,199.5,2.0]
[1756557485048,0.04,199.63,199.53,2.0]
[1756557485251,0.04,199.69,199.62,1.31957347]
[1756557485447,6.46427454,199.75,199.66,2.0]
[1756557485653,6.46427454,199.75,199.68,2.0]
[1756557485849,6.46427454,199.71,199.63,2.0]
[1756557486048,0.04,199.74,199.62,2.0]
[1756557486254,0.04,199.82,199.58,7.6]
[1756557486555,6.46427454,199.84,199.76,3.31957347]
[1756557486754,144.88,199.89,199.7,1.31957347]
[1756557486755,6.46427454,199.79,199.7,1.31957347]
[1756557486949,6.46427454,199.75,199.63,7.6]
[1756557487157,6.46427454,199.75,199.54,6.46427454]
[1756557487158,6.46427454,199.71,199.65,2.0]
[1756557487452,0.05,199.86,199.72,7.45]
[1756557487652,0.05,199.93,199.72,7.45]
[1756557487853,6.46427454,199.87,199.8,2.0]
[1756557488052,6.46427454,199.83,199.72,7.45]
[1756557488250,6.51427454,199.88,199.72,7.45]
[1756557488456,6.46427454,199.9,199.84,2.0]
[1756557488658,6.46427454,199.86,199.72,7.45]
[1756557488860,6.46427454,199.78,199.57,7.45]
[1756557489158,6.51427454,199.78,199.71,2.0]
[1756557489353,6.51427454,199.78,199.64,7.45]
[1756557489556,6.46427454,199.78,199.73,1.31957347]
[1756557489756,6.46427454,199.78,199.75,2.0]
[1756557489949,0.05,199.83,199.64,7.45]
[1756557490149,6.46427454,199.85,199.78,1.31957347]
[1756557490350,6.46427454,199.85,199.71,7.45]
[1756557490351,489.26427454,199.87,199.68,7.45]
[1756557490555,489.26427454,199.87,199.67,6.46427454]
[1756557490556,489.26427454,199.87,199.83,2.0]
[1756557490854,489.26427454,199.87,199.76,7.45]
[1756557491061,6.46427454,199.83,199.76,7.45]
[1756557491263,6.46427454,199.9,199.76,7.45]
[1756557491459,6.46427454,199.95,199.91,2.0]
[1756557491659,6.46427454,199.95,199.83,7.45]
[1756557491852,0.05,199.98,199.83,7.45]
[1756557491853,6.46427454,199.91,199.88,2.0]
[1756557492166,0.05,199.98,199.83,7.45]
[1756557492167,6.51427454,199.98,199.95,2.0]
[1756557492461,146.42,200.02,199.97,2.0]
[1756557492657,108.06750316,200.13,199.98,0.5]
[1756557492861,114.5317777,200.13,199.99,7.45]
[1756557493058,6.46427454,200.09,199.99,7.45]
[1756557493259,6.46427454,200.09,200.03,1.31957347]
[1756557493570,6.46427454,200.11,200.05,1.31957347]
[1756557493958,6.46427454,200.07,199.99,7.45]
[1756557494155,6.46427454,200.07,200.03,1.31957347]
[1756557494361,6.46427454,200.07,200.02,1.31957347]
[1756557494561,6.46427454,200.1,199.99,7.45]
[1756557495264,6.46427454,200.1,200.02,1.31957347]
[1756557495466,6.46427454,200.06,200.02,1.31957347]
[1756557495670,6.46427454,200.06,200.02,7.45]
[1756557495964,6.46427454,200.1,199.98,7.45]
[1756557496163,6.46427454,200.12,199.98,7.45]
[1756557496465,6.46427454,200.08,199.98,7.45]
[1756557496765,6.46427454,200.08,200.04,1.31957347]
[1756557496968,6.46427454,200.08,199.98,7.45]
[1756557497264,51.24,200.12,199.98,7.45]
[1756557497265,6.46427454,200.04,199.98,7.45]
[1756557497467,6.46427454,200.08,199.98,7.45]
[1756557498859,6.46427454,200.04,199.98,7.45]
[1756557499469,6.46427454,200.04,199.86,7.45]
[1756557499670,6.46427454,200.0,199.86,7.45]
[1756557500765,6.46427454,199.96,199.86,7.45]
[1756557502962,6.46427454,199.96,199.89,0.03238209]
[1756557503567,6.46427454,199.98,199.9,7.45]
[1756557504572,6.46427454,200.03,199.93,7.45]
[1756557505264,6.46427454,200.05,199.93,7.45]
[1756557505464,6.46427454,200.1,199.93,7.45]
[1756557505669,6.46427454,200.12,199.97,7.45]
[1756557505865,0.03,200.21,199.99,6.46427454]
[1756557506074,0.03,200.21,200.05,7.45]
[1756557506866,6.46427454,200.2,200.05,7.45]
[1756557507072,6.46427454,200.2,200.11,0.03281976]
[1756557508564,20.76,200.26,200.11,7.48281976]
[1756557508969,20.76,200.26,200.11,7.45]
[1756557509169,6.46427454,200.23,200.16,0.03255178]
[1756557509769,6.46427454,200.19,200.16,0.03255178]
[1756557509969,0.03,200.18,200.16,0.03255178]
[1756557511170,0.03,200.16,199.92,6.46427454]
[1756557511375,6.46427454,200.11,199.93,7.45]
[1756557512274,6.46427454,200.15,199.97,7.45]
[1756557512681,6.46427454,200.15,200.04,0.03472477]
[1756557513274,336.06,200.2,200.05,7.45]
[1756557513476,0.07,200.23,200.07,7.45]
[1756557513974,0.07,200.23,200.13,0.03535938]
[1756557514482,6.46427454,200.22,200.13,0.03535938]
[1756557515581,6.46427454,200.18,200.13,0.03535938]
[1756557515972,6.53427454,200.18,200.05,7.45]
[1756557516177,6.46427454,200.14,199.96,7.45]
[1756557516580,6.46427454,200.14,200.03,0.03186302]
[1756557517183,0.09,200.13,200.03,0.03186302]
[1756557519378,6.46427454,200.16,200.03,0.03186302]
[1756557519784,6.46427454,200.16,200.01,7.45]
[1756557520283,0.09,200.11,200.07,0.03426485]
[1756557520682,335.98,200.21,200.07,0.03426485]
[1756557520881,6.46427454,200.17,200.07,0.03426485]
[1756557521076,6.46427454,200.17,200.01,7.45]
[1756557521781,6.46427454,200.17,200.07,0.03264191]
[1756557521984,0.09,200.16,200.07,0.03264191]
[1756557522179,6.46427454,200.13,200.07,0.03264191]
[1756557522687,0.09,200.16,200.07,0.03264191]
[1756557522888,6.52427454,200.09,199.92,8.04]
[1756557523086,6.46427454,200.05,199.92,8.04]
[1756557523991,6.52427454,200.05,199.92,8.04]
[1756557524186,0.03536862,200.0,199.92,8.04]
[1756557527284,6.49964316,200.0,199.92,8.04]
[1756557529389,3.57710635,199.99,199.92,8.04]
[1756557529590,6.49964316,200.0,199.92,8.04]
[1756557530182,7.37555108,199.99,199.92,8.04]
[1756557530387,3.58683178,199.98,199.92,8.04]
[1756557530691,6.49964316,200.0,199.83,8.04]
[1756557530893,3.58711751,199.99,199.83,8.04]
[1756557531093,6.46427454,200.0,199.83,8.04]
[1756557531295,7.39023984,199.99,199.83,8.04]
[1756557531590,0.03212364,199.93,199.83,8.04]
[1756557532091,0.06,200.01,199.83,8.04]
[1756557532292,10.79263419,200.0,199.83,8.04]
[1756557532496,7.40182244,199.99,199.83,8.04]
[1756557532690,7.40182244,199.98,199.83,8.04]
[1756557532885,3.5995675,199.97,199.83,8.04]
[1756557533084,3.5995675,199.96,199.83,8.04]
[1756557533288,6.46427454,200.04,199.9,8.04]
[1756557533490,10.80514387,200.03,199.9,8.04]
[1756557533689,10.89514387,200.02,199.9,8.04]
[1756557533885,6.46427454,200.0,199.9,8.04]
[1756557534096,6.99859789,199.99,199.95,0.0336375]
[1756557534297,6.99859789,199.98,199.95,0.0336375]
[1756557534497,6.99859789,199.97,199.95,0.0336375]
[1756557534797,13.55287243,199.96,199.81,8.04]
[1756557534998,6.55427454,199.92,199.81,8.04]
[1756557535198,6.46427454,199.88,199.7,8.04]
[1756557535399,6.99859789,199.87,199.7,8.04]
[1756557535596,6.99859789,199.86,199.7,8.04]
[1756557535796,0.09,199.92,199.7,8.04]
[1756557535797,3.60358217,199.85,199.7,8.04]
[1756557535997,3.60358217,199.84,199.7,8.04]
[1756557536301,0.03323637,199.8,199.7,8.04]
[1756557537898,6.46427454,199.96,199.77,6.46427454]
[1756557538200,6.46427454,199.96,199.78,8.04]
[1756557538201,7.01617286,199.95,199.78,8.04]
[1756557538402,3.40311965,199.94,199.8,8.04]
[1756557538599,6.46427454,199.96,199.8,8.04]
[1756557538802,3.40310946,199.95,199.8,8.04]
[1756557539099,3.40310946,199.94,199.86,0.03374884]
[1756557539303,6.46427454,199.96,199.86,0.03374884]
[1756557539497,3.40276938,199.95,199.86,0.03374884]
[1756557539693,3.40276938,199.94,199.86,0.03374884]
[1756557539894,6.46427454,199.96,199.86,0.03374884]
[1756557540203,6.96777729,199.95,199.86,0.03374884]
[1756557540396,0.12,200.03,199.87,8.04]
[1756557540592,0.12,200.08,199.89,8.04]
[1756557540796,0.12,200.05,199.89,8.04]
[1756557540997,6.97018176,200.04,199.89,8.04]
[1756557541298,3.40340202,200.03,199.9,8.04]
[1756557541493,6.58427454,200.12,199.96,8.04]
[1756557541697,6.92562831,200.11,199.96,8.04]
[1756557541896,6.58427454,200.12,199.96,8.04]
[1756557541897,6.92562831,200.1,199.96,8.04]
[1756557542099,3.40429101,200.09,199.96,8.04]
[1756557542395,6.58427454,200.18,199.98,8.04]
[1756557542602,0.12,200.16,200.01,8.04]
[1756557542904,6.46427454,200.14,200.01,8.04]
[1756557543202,0.12,200.16,200.01,8.04]
[1756557543401,3.40435276,200.15,200.05,0.03265827]
[1756557543600,9.8686273,200.14,200.05,0.03265827]
[1756557543908,143.06,200.22,200.06,8.04]
[1756557543909,6.58427454,200.22,200.06,8.04]
[1756557544206,0.12,200.22,200.06,8.04]
[1756557544501,6.58427454,200.22,200.06,8.04]
[1756557544707,3.40331671,200.21,200.12,0.03275746]
[1756557544901,6.58427454,200.18,200.12,0.03275746]
[1756557545302,6.58427454,200.18,200.06,8.04]
[1756557545603,0.12,200.16,200.13,0.03415298]
[1756557545809,6.46427454,200.18,200.13,0.03415298]
[1756557545995,6.58427454,200.14,200.01,8.04]
[1756557547106,60.54,200.18,199.77,8.31263789]
[1756557547107,6.46427454,200.06,199.92,8.09]
[1756557547794,0.03716566,200.01,199.92,8.09]
[1756557551510,0.03716566,200.01,199.94,8.09]
[1756557552011,0.12,200.09,199.94,8.09]
[1756557552214,0.12,200.09,199.91,8.09]
[1756557552215,0.03315366,199.99,199.91,8.09]
[1756557552507,0.12,200.09,199.91,8.09]
[1756557552811,0.03557035,199.97,199.91,8.09]
[1756557553212,6.46427454,200.08,199.91,8.09]
[1756557553411,0.03726352,199.96,199.86,8.09]
[1756557553713,6.58427454,200.04,199.86,8.09]
[1756557554009,0.0358554,199.93,199.86,8.09]
[1756557554408,6.46427454,200.03,199.86,8.09]
[1756557554607,0.03558184,199.91,199.86,8.09]
[1756557554803,0.03558184,199.91,199.85,6.46427454]
[1756557555110,6.46427454,200.03,199.86,8.09]
[1756557555303,6.46427454,200.03,199.84,142.82]
[1756557555304,0.03184204,199.9,199.84,142.82]
[1756557555505,6.46427454,200.03,199.85,8.09]
[1756557557210,6.46427454,200.03,199.92,0.03248467]
[1756557558209,0.12,200.04,199.92,0.03248467]
[1756557558607,0.12,200.04,199.9,8.09]
[1756557559413,6.46427454,200.07,199.9,8.09]
[1756557561212,7.09385946,200.06,199.9,8.09]
[1756557561416,3.41535188,200.05,199.9,8.09]
[1756557561617,0.15,200.04,199.9,8.09]
[1756557561917,0.15,200.02,199.83,8.09]
[1756557563118,0.15,200.02,199.91,0.03244314]
[1756557563812,6.46427454,200.0,199.91,0.03244314]
[1756557564019,0.15,199.99,199.91,0.03244314]
[1756557564218,0.15,199.99,199.83,8.09]
[1756557564514,0.18,199.94,199.73,8.09]
[1756557564720,6.46427454,199.91,199.89,0.03198803]
[1756557564920,0.18,199.9,199.89,0.03198803]
[1756557565219,0.18,199.9,199.77,8.09]
[1756557565411,0.18,199.9,199.88,0.03193658]
[1756557565610,0.18,199.9,199.77,8.09]
[1756557566009,6.46427454,199.91,199.87,0.03270888]
[1756557566215,6.64427454,199.95,199.81,8.09]
[1756557569824,6.64427454,199.95,199.86,0.03306292]
[1756557571618,6.46427454,199.91,199.86,0.03306292]
[1756557571824,0.18,199.9,199.86,0.03306292]
[1756557572419,6.46427454,199.91,199.86,0.03306292]
[1756557572825,0.18,199.9,199.86,0.03306292]
[1756557573024,6.46427454,199.91,199.86,0.03306292]
[1756557573227,0.18,199.9,199.86,0.03306292]
[1756557574334,6.46427454,199.91,199.86,0.03306292]
[1756557575126,0.18,199.9,199.86,0.03306292]
[1756557575729,6.46427454,199.87,199.76,8.09]
[1756557577129,0.03246811,199.83,199.76,8.09]
[1756557584043,4.00011124,199.83,199.76,8.09]
[1756557586344,3.96764313,199.8,199.65,336.06]
[1756557586644,3.96764313,199.8,199.66,7.33]
[1756557586940,0.16,199.86,199.66,7.33]
[1756557587145,3.96764313,199.82,199.72,7.33]
[1756557588146,4.16764313,199.82,199.72,7.33]
[1756557589551,4.16764313,199.82,199.75,0.03242148]
[1756557592048,3.96764313,199.83,199.76,7.33]
[1756557592252,3.96764313,199.86,199.76,7.33]
[1756557592747,3.96764313,199.86,199.79,0.03363764]
[1756557592953,0.2,199.87,199.79,0.03363764]
[1756557593346,0.2,199.87,199.79,7.36363764]
[1756557593551,3.96764313,199.91,199.79,7.36363764]
[1756557594054,0.2,199.9,199.79,7.33]
[1756557594245,0.2,199.9,199.83,0.03158516]
[1756557595156,0.2,199.87,199.83,0.03158516]
[1756557595355,0.2,199.84,199.75,7.33]
[1756557595555,3.96764313,199.82,199.75,7.33]
[1756557596350,3.96764313,199.81,199.75,7.33]
[1756557596654,0.03585826,199.8,199.75,7.33]
[1756557597051,0.03585826,199.8,199.68,7.33]
[1756557597454,3.96764313,199.81,199.68,7.33]
[1756557597958,0.03516443,199.76,199.68,7.33]
[1756557600049,0.03516443,199.76,199.68,4.46764313]
[1756557600249,0.03516443,199.76,199.69,7.33]
[1756557600453,3.96764313,199.89,199.74,3.96764313]
[1756557600651,3.96764313,199.89,199.75,7.33]
[1756557601354,3.96764313,199.86,199.75,7.33]
[1756557601555,3.96764313,199.79,199.62,7.33]
[1756557601761,3.96764313,199.79,199.65,3.96764313]
[1756557601961,3.96764313,199.79,199.66,7.33]
[1756557603558,0.23,199.82,199.66,7.33]
[1756557603765,4.19764313,199.82,199.68,3.96764313]
[1756557604065,4.19764313,199.82,199.69,7.33]
[1756557604261,0.23,199.82,199.69,7.33]
[1756557604458,0.23,199.82,199.61,122.12]
[1756557604459,3.96764313,199.88,199.72,7.33]
[1756557604662,4.19764313,199.88,199.72,7.33]
[1756557605362,3.96764313,199.85,199.72,7.33]
[1756557606664,3.6565567,199.84,199.72,7.33]
[1756557606968,0.23,199.84,199.72,7.33]
[1756557607770,3.42796105,199.83,199.72,7.33]
[1756557607960,0.23,199.84,199.72,7.33]
[1756557608165,3.4296599,199.83,199.72,7.33]
[1756557608364,0.23,199.84,199.72,7.33]
[1756557608564,3.42965942,199.83,199.72,7.33]
[1756557608770,0.23,199.84,199.72,7.33]
[1756557609067,3.42965979,199.83,199.72,7.33]
[1756557609270,0.23,199.84,199.72,7.33]
[1756557610468,0.23,199.84,199.73,7.45]
[1756557612770,3.42795449,199.83,199.73,7.45]
[1756557613071,4.19764313,199.84,199.73,7.45]
[1756557613267,3.42858098,199.83,199.73,7.45]
[1756557613469,4.19764313,199.84,199.73,7.45]
[1756557613670,3.42821273,199.83,199.73,7.45]
[1756557613871,4.19764313,199.84,199.73,7.45]
[1756557614069,3.42821273,199.83,199.73,7.45]
[1756557614267,4.19764313,199.84,199.73,7.45]
[1756557614468,3.42898437,199.83,199.73,7.45]
[1756557614672,4.19764313,199.84,199.73,7.45]
[1756557614868,3.42898379,199.83,199.73,7.45]
[1756557615172,4.19764313,199.84,199.73,7.45]
[1756557615370,3.42988073,199.83,199.73,7.45]
[1756557615569,4.19764313,199.84,199.73,7.45]
[1756557615871,6.97438538,199.83,199.73,7.45]
[1756557616062,3.42895508,199.82,199.73,7.45]
[1756557616268,4.19764313,199.84,199.73,7.45]
[1756557616470,6.97623236,199.83,199.73,7.45]
[1756557616672,3.42993279,199.82,199.73,7.45]
[1756557616869,4.19764313,199.84,199.73,7.45]
[1756557617170,6.97623308,199.83,199.73,7.45]
[1756557617472,3.42993316,199.82,199.73,7.45]
[1756557617666,0.24,199.8,199.66,7.45]
[1756557617862,3.42890353,199.79,199.66,7.45]
[1756557618173,3.42880046,199.78,199.66,7.45]
[1756557618475,0.24,199.8,199.66,7.45]
[1756557618665,0.24,199.77,199.66,7.45]
[1756557618868,0.24,199.74,199.66,7.45]
[1756557619970,3.96764313,199.72,199.57,7.45]
[1756557620270,0.24,199.74,199.56,8.31263789]
[1756557620271,0.24,199.74,199.6,7.45]
[1756557622475,3.96764313,199.76,199.6,7.45]
[1756557622676,0.24,199.84,199.69,7.45]
[1756557622877,6.95919375,199.83,199.69,7.45]
[1756557623170,0.24,199.84,199.69,7.45]
[1756557623376,6.95986363,199.83,199.69,7.45]
[1756557623674,0.24,199.84,199.69,7.45]
[1756557623874,3.42217484,199.83,199.69,7.45]
[1756557624071,3.96764313,199.82,199.69,7.45]
[1756557624372,0.24,199.81,199.69,7.45]
[1756557624777,5.43060973,199.9,199.69,7.45]
[1756557625076,5.43060973,199.9,199.66,124.36]
[1756557625077,3.66248611,199.89,199.72,7.45]
[1756557625377,7.39012924,199.88,199.72,7.45]
[1756557625576,3.42248611,199.87,199.72,7.45]
[1756557625773,3.42248611,199.87,199.75,7.45]
[1756557626071,0.24,199.86,199.75,7.45]
[1756557626279,3.96764313,199.81,199.71,7.45]
[1756557626573,7.38945043,199.8,199.65,3.96764313]
[1756557626773,3.96764313,199.82,199.66,7.45]
[1756557626969,3.66205458,199.81,199.66,7.45]
[1756557627274,3.42205458,199.8,199.66,7.45]
[1756557627776,3.96764313,199.79,199.66,7.45]
[1756557628773,3.42213576,199.78,199.66,7.45]
[1756557628977,3.96764313,199.79,199.66,7.45]
[1756557629178,3.42213634,199.78,199.66,7.45]
[1756557629378,3.96764313,199.79,199.66,7.45]
[1756557629676,0.25,199.77,199.66,7.45]
[1756557630378,3.96764313,199.76,199.66,7.45]
[1756557630876,0.25,199.77,199.66,7.45]
[1756557631074,3.96764313,199.81,199.68,7.45]
[1756557632179,3.42130555,199.8,199.68,7.45]
[1756557632378,0.25,199.87,199.71,7.45]
[1756557632579,7.38933486,199.86,199.71,7.45]
[1756557632880,3.42169173,199.85,199.73,7.45]
[1756557633081,4.21764313,199.87,199.73,7.45]
[1756557633281,3.42228645,199.86,199.73,7.45]
[1756557633482,3.42219234,199.85,199.73,7.45]
[1756557633683,4.21764313,199.87,199.73,7.45]
[1756557633885,3.42219371,199.86,199.73,7.45]
[1756557634086,3.42219371,199.85,199.73,7.45]
[1756557634284,0.25,199.76,199.66,7.45]
[1756557634684,0.25,199.76,199.57,7.45]
[1756557634877,3.96764313,199.73,199.6,7.45]
[1756557635483,0.25,199.86,199.69,7.45]
[1756557635679,3.96764313,199.83,199.69,7.45]
[1756557636685,3.96764313,199.88,199.73,3.96764313]
[1756557636992,3.96764313,199.88,199.74,7.45]
[1756557636993,0.25,199.87,199.74,7.45]
[1756557637777,39.12,199.93,199.65,8.31263789]
[1756557637778,3.63100545,199.84,199.65,8.12]
[1756557637976,3.96764313,199.82,199.67,8.12]
[1756557638578,3.96764313,199.82,199.68,3.96764313]
[1756557639392,3.40377191,199.81,199.68,3.96764313]
[1756557639682,3.96764313,199.82,199.68,3.96764313]
[1756557639888,3.40393247,199.81,199.68,3.96764313]
[1756557640086,3.96764313,199.82,199.68,3.96764313]
[1756557640384,0.24,199.8,199.67,8.12]
[1756557640590,3.96764313,199.72,199.61,8.12]
[1756557640785,3.64260262,199.71,199.52,8.12]
[1756557641082,3.40260262,199.7,199.56,8.12]
[1756557641289,3.96764313,199.69,199.56,8.12]
[1756557641488,3.96764313,199.7,199.56,8.12]
[1756557643186,0.24,199.71,199.59,8.12]
[1756557644485,3.96764313,199.7,199.59,8.12]
[1756557644887,3.96764313,199.67,199.59,8.12]
[1756557645387,3.96764313,199.67,199.5,3.96764313]
[1756557645692,3.96764313,199.64,199.51,8.12]
[1756557646892,3.96764313,199.67,199.54,8.12]
[1756557647588,0.24,199.71,199.54,8.12]
[1756557647886,3.96764313,199.68,199.54,8.12]
[1756557649794,3.96764313,199.74,199.59,8.12]
[1756557650901,3.96764313,199.74,199.62,8.12]
[1756557651589,336.76,199.75,199.62,8.12]
[1756557651793,4.20764313,199.8,199.64,3.96764313]
[1756557652001,4.20764313,199.8,199.65,8.12]
[1756557652197,111.67060401,199.85,199.67,3.96764313]
[1756557652400,111.67060401,199.85,199.62,12.58]
[1756557652401,3.39260787,199.84,199.7,3.96764313]
[1756557652601,115.63824714,199.85,199.7,3.96764313]
[1756557652801,115.63824714,199.85,199.68,12.08764313]
[1756557653097,115.63824714,199.85,199.71,3.96764313]
[1756557653303,115.63824714,199.85,199.72,8.12]
[1756557653699,0.24,199.86,199.72,8.12]
[1756557654004,0.24,199.86,199.75,8.12]
[1756557654401,3.96764313,199.9,199.75,8.12]
[1756557654902,0.24,199.89,199.75,8.12]
[1756557655106,0.24,199.86,199.75,8.12]
[1756557656502,3.96764313,199.92,199.77,3.96764313]
[1756557656702,3.39479347,199.91,199.78,8.12]
[1756557657004,3.96764313,199.92,199.78,8.12]